fUST/lending_fUST_20260110
["ID","MTS","AMOUNT","RATE_DAILY","PERIOD"]
[401146275,1767976239210,-500.0,0.00012786,2]
[401146277,1767976239220,-500.0,0.00012786,2]
[401146279,1767976239230,-500.0,0.00012786,2]
[401146281,1767976239241,-500.0,0.00012786,2]
[401146283,1767976239251,-500.0,0.00012786,2]
[401146285,1767976239262,-500.0,0.00012786,2]
[401146287,1767976239272,-500.0,0.00012786,2]
[401146289,1767976239282,-500.0,0.00012786,2]
[401146291,1767976239292,-500.0,0.00012786,2]
[401146293,1767976239303,-500.0,0.00012786,2]
[401146295,1767976239312,-500.0,0.00012786,2]
[401146297,1767976239322,-500.0,0.00012786,2]
[401146299,1767976239333,-500.0,0.00012786,2]
[401146301,1767976239342,-500.0,0.00012786,2]
[401146304,1767976239352,-500.0,0.00012786,2]
[401146305,1767976239362,-500.0,0.00012786,2]
[401146307,1767976239372,-500.0,0.00012786,2]
[401146310,1767976239383,-500.0,0.00012786,2]
[401146311,1767976239393,-500.0,0.00012786,2]
[401146314,1767976239405,-500.0,0.00012786,2]
[401146316,1767976239415,-500.0,0.00012786,2]
[401146317,1767976239425,-500.0,0.00012786,2]
[401146319,1767976239435,-500.0,0.00012786,2]
[401146321,1767976239445,-500.0,0.00012786,2]
[401146324,1767976239456,-500.0,0.00012786,2]
[401146325,1767976239466,-500.0,0.00012786,2]
[401146328,1767976239476,-500.0,0.00012786,2]
[401146330,1767976239486,-441.27101463,0.00012786,2]
[401146331,1767976239496,-500.0,0.00012786,2]
[401146333,1767976239506,-500.0,0.00012786,2]
[401146335,1767976239516,-500.0,0.00012786,2]
[401146338,1767976239526,-9875.24600405,0.00012787,2]
[401146339,1767976239536,-300.0,0.00012945,2]
[401146341,1767976239546,-300.0,0.00012945,2]
[401146343,1767976239556,-300.0,0.00012945,2]
[401146345,1767976239565,-300.0,0.00012945,2]
[401146347,1767976239574,-300.0,0.00012945,2]
[401146349,1767976239584,-300.0,0.00012945,2]
[401146351,1767976239593,-300.0,0.00012945,2]
[401146353,1767976239603,-300.0,0.00012945,2]
[401146355,1767976239613,-300.0,0.00012945,2]
[401146357,1767976239622,-300.0,0.00012945,2]
[401146359,1767976239632,-300.0,0.00012945,2]
[401146361,1767976239642,-300.0,0.00012945,2]
[401146363,1767976239651,-300.0,0.00012945,2]
[401146365,1767976239661,-300.0,0.00012945,2]
[401146367,1767976239670,-300.0,0.00012945,2]
[401146369,1767976239679,-600.0,0.00012945,2]
[401146371,1767976239688,-343.30306382,0.00013021,2]
[401146373,1767976239698,-500.0,0.00013273,2]
[401146375,1767976239709,-500.0,0.00013273,2]
[401146377,1767976239718,-500.0,0.00013273,2]
[401146379,1767976239728,-501.92931804,0.00013273,2]
[401146381,1767976239738,-500.0,0.00013273,2]
[401146383,1767976239747,-500.0,0.00013273,2]
[401146385,1767976239757,-500.0,0.00013273,2]
[401146387,1767976239766,-397.43235778,0.00013273,2]
[401146389,1767976239776,-500.0,0.00013273,2]
[401146391,1767976239786,-500.0,0.00013273,2]
[401146393,1767976239796,-500.82445671,0.00013273,2]
[401146395,1767976239806,-500.0,0.00013273,2]
[401146397,1767976239815,-500.0,0.00013273,2]
[401146399,1767976239825,-500.0,0.00013273,2]
[401146401,1767976239837,-500.0,0.00013273,2]
[401146403,1767976239847,-235.26255763,0.00013273,2]
[401146405,1767976239856,-500.0,0.00013273,2]
[401146407,1767976239866,-500.0,0.00013273,2]
[401146409,1767976239875,-561.44282102,0.00013273,2]
[401146411,1767976239890,-500.0,0.00013273,2]
[401146413,1767976239900,-500.0,0.00013273,2]
[401146415,1767976239911,-500.0,0.00013273,2]
[401146417,1767976239921,-500.0,0.00013273,2]
[401146419,1767976239931,-500.0,0.00013273,2]
[401146421,1767976239941,-500.0,0.00013273,2]
[401146422,1767976239950,-500.0,0.00013273,2]
[401146423,1767976239959,-500.0,0.00013273,2]
[401146424,1767976239969,-500.0,0.00013273,2]
[401146425,1767976239978,-500.0,0.00013273,2]
[401146426,1767976239987,-647.41342126,0.00013273,2]
[401146427,1767976239996,-500.0,0.00013273,2]
[401146428,1767976240006,-500.0,0.00013273,2]
[401146429,1767976240015,-179.12413668,0.00013273,2]
[401146430,1767976240024,-500.0,0.00013273,2]
[401146431,1767976240033,-500.0,0.00013273,2]
[401146432,1767976240042,-500.0,0.00013273,2]
[401146433,1767976240052,-500.0,0.00013273,2]
[401146434,1767976240061,-500.0,0.00013273,2]
[401146435,1767976240070,-500.0,0.00013273,2]
[401146436,1767976240081,-500.0,0.00013273,2]
[401146438,1767976240091,-2926.23182292,0.00013599,2]
[401146440,1767976240107,-3789.85,0.0001369,2]
[401146442,1767976240121,-500.0,0.00013698,2]
[401146443,1767976240135,-500.0,0.00013698,2]
[401146444,1767976240148,-500.0,0.00013698,2]
[401146445,1767976240161,-500.0,0.00013698,2]
[401146446,1767976240173,-500.0,0.00013698,2]
[401146447,1767976240183,-500.0,0.00013698,2]
[401146448,1767976240194,-500.0,0.00013698,2]
[401146449,1767976240208,-500.0,0.00013698,2]
[401146450,1767976240220,-500.0,0.00013698,2]
[401146451,1767976240232,-500.0,0.00013698,2]
[401146452,1767976240244,-500.0,0.00013698,2]
[401146453,1767976240257,-501.17078603,0.00013698,2]
[401146454,1767976240269,-500.0,0.00013698,2]
[401146455,1767976240281,-500.0,0.00013698,2]
[401146456,1767976240293,-500.0,0.00013698,2]
[401146457,1767976240305,-500.0,0.00013698,2]
[401146458,1767976240317,-500.0,0.00013698,2]
[401146459,1767976240330,-500.0,0.00013698,2]
[401146461,1767976240343,-500.0,0.00013698,2]
[401146462,1767976240355,-500.0,0.00013698,2]
[401146465,1767976240367,-500.0,0.00013698,2]
[401146467,1767976240378,-500.0,0.00013698,2]
[401146469,1767976240391,-500.0,0.00013698,2]
[401146472,1767976240405,-500.0,0.00013698,2]
[401146474,1767976240417,-500.0,0.00013698,2]
[401146476,1767976240429,-500.0,0.00013698,2]
[401146479,1767976240440,-500.0,0.00013698,2]
[401146481,1767976240454,-500.0,0.00013698,2]
[401146483,1767976240466,-500.0,0.00013698,2]
[401146485,1767976240478,-500.0,0.00013698,2]
[401146487,1767976240488,-500.0,0.00013698,2]
[401146489,1767976240500,-500.0,0.00013698,2]
[401146491,1767976240511,-500.0,0.00013698,2]
[401146494,1767976240523,-500.0,0.00013698,2]
[401146496,1767976240532,-318.46249002,0.00013698,2]
[401146498,1767976240545,-218397.5777233,0.00013699,2]
[401146500,1767976240555,-1000.0,0.00013699,2]
[401146502,1767976240566,-556.5,0.00013699,2]
[401146504,1767976240577,-158.45531345,0.00013699,2]
[401146507,1767976240589,-500.0,0.00013699,2]
[401146509,1767976240600,-500.0,0.00013699,2]
[401146511,1767976240612,-500.0,0.00013699,2]
[401146513,1767976240623,-404.0571961,0.00013821,2]
[401146516,1767976240636,-500.0,0.00013821,2]
[401146518,1767976240648,-300.0,0.00013821,2]
[401146520,1767976240660,-236.76731322,0.00013821,2]
[401146522,1767976240673,-1000.0,0.00013821,2]
[401146525,1767976240684,-1000.0,0.00013821,2]
[401146527,1767976240696,-420.0,0.00014024,2]
[401146529,1767976240707,-480.0,0.00014064,2]
[401146531,1767976240717,-720.0,0.0001424,2]
[401146533,1767976240727,-1000.0,0.00014247,2]
[401146535,1767976240737,-1000.0,0.00014247,2]
[401146537,1767976240747,-1000.0,0.00014247,2]
[401146540,1767976240757,-1500.0,0.00014368,2]
[401146542,1767976240767,-1500.0,0.00014368,2]
[401146544,1767976240779,-5000.0,0.0001451,2]
[401146546,1767976240791,-1000.0,0.00014795,2]
[401146549,1767976240803,-1500.0,0.00014795,2]
[401146551,1767976240815,-916.19013549,0.00014795,2]
[401146553,1767976240827,-509.85328175,0.00014881,2]
[401146555,1767976240837,-648.08858533,0.00014881,2]
[401146557,1767976240847,-648.08858533,0.00014881,2]
[401146559,1767976240858,-648.08858533,0.00014881,2]
[401146561,1767976240869,-648.08858533,0.00014881,2]
[401146564,1767976240880,-648.08858533,0.00014881,2]
[401146566,1767976240892,-648.08858533,0.00014881,2]
[401146568,1767976240904,-648.08858533,0.00014881,2]
[401146570,1767976240914,-648.08858533,0.00014881,2]
[401146572,1767976240925,-648.08858533,0.00014881,2]
[401146574,1767976240935,-648.08858533,0.00014881,2]
[401146577,1767976240946,-648.08858533,0.00014881,2]
[401146579,1767976240957,-651.90087113,0.00014881,2]
[401146581,1767976240968,-651.90087113,0.00014881,2]
[401146583,1767976240979,-651.90087113,0.00014881,2]
[401146585,1767976240990,-651.90087113,0.00014881,2]
[401146587,1767976241001,-651.90087113,0.00014881,2]
[401146589,1767976241012,-651.90087113,0.00014881,2]
[401146592,1767976241025,-651.90087113,0.00014881,2]
[401146594,1767976241038,-722.67867999,0.00014881,2]
[401146596,1767976241049,-722.67867999,0.00014881,2]
[401146598,1767976241060,-722.67867999,0.00014881,2]
[401146600,1767976241071,-722.67867999,0.00014881,2]
[401146602,1767976241083,-722.67867999,0.00014881,2]
[401146604,1767976241094,-992.73229198,0.00014881,2]
[401146607,1767976241107,-100000.0,0.00014882,2]
[401146609,1767976241118,-2000.0,0.00014916,2]
[401146611,1767976241129,-2000.0,0.00014916,2]
[401146613,1767976241141,-160.03,0.00015,2]
[401146616,1767976241153,-395.67132779,0.00015021,2]
[401146618,1767976241163,-156.74880836,0.00015341,2]
[401146620,1767976241175,-500.0,0.00015342,2]
[401146622,1767976241185,-2540.0800826,0.00015417,2]
[401146625,1767976241200,-223.47237517,0.00015464,2]
[401146627,1767976241212,-2500.0,0.00015464,2]
[401146629,1767976241223,-2926.23182289,0.00015614,2]
[401146631,1767976241234,-864.0,0.00015664,2]
[401146633,1767976241245,-2540.0800826,0.00015675,2]
[401146636,1767976241257,-1000.0,0.00016,2]
[401146638,1767976241268,-30000.0,0.00016,2]
[401146639,1767976241279,-238.75755828,0.00016007,2]
[401146640,1767976241290,-2500.0,0.00016012,2]
[401146641,1767976241301,-2540.0800826,0.0001616,2]
[401146642,1767976241312,-2540.0800826,0.00016269,2]
[401146643,1767976241323,-472.2,0.00016438,2]
[401146644,1767976241337,-2540.0800826,0.00016565,2]
[401146645,1767976241348,-2540.0800826,0.00016984,2]
[401146646,1767976241360,-37185.9837877,0.00016998,2]
[401146647,1767976241372,-200.0,0.00016999,2]
[401146648,1767976241382,-566.13018199,0.00017,2]
[401146649,1767976241393,-36664.97377949,0.00017,2]
[401146650,1767976241405,-274.26759004,0.00017,2]
[401146651,1767976241415,-54468.90538371,0.00017,2]
[401146652,1767976241427,-31822.86060854,0.0001701,3]
[401146653,1767976241438,-448.03959177,0.00017021,2]
[401146654,1767976241450,-472.2,0.00017198,2]
[401146655,1767976241464,-743.84,0.000172,2]
[401146656,1767976241475,-297.53,0.000172,16]
[401146657,1767976241486,-455.38,0.000172,2]
[401146658,1767976241498,-1000.0,0.0001723,2]
[401146659,1767976241509,-151.0,0.000173,2]
[401146660,1767976241519,-5000.0,0.00017412,2]
[401146661,1767976241531,-2146.0,0.00017431,2]
[401146662,1767976241541,-1366.0,0.00017431,2]
[401146663,1767976241552,-628.0,0.00017431,2]
[401146664,1767976241563,-714.0,0.00017431,2]
[401146665,1767976241574,-417.0,0.00017431,2]
[401146666,1767976241586,-196.35,0.00017431,2]
[401146667,1767976241597,-417.0,0.00017431,2]
[401146668,1767976241607,-180.02340304,0.00017474,2]
[401146669,1767976241619,-2926.23182289,0.00017629,2]
[401146670,1767976241629,-1000.0,0.00017661,7]
[401146671,1767976241640,-361.0,0.0001779,2]
[401146672,1767976241651,-371.55800831,0.00017956,2]
[401146673,1767976241662,-472.2,0.00017958,2]
[401146674,1767976241673,-130575.48162999,0.00018,2]
[401146675,1767976241683,-3140.92195732,0.00018,5]
[401146676,1767976241695,-30003.68823938,0.00018,2]
[401146677,1767976241705,-151.0,0.00018,2]
[401146678,1767976241717,-151.0,0.00018,2]
[401146679,1767976241727,-151.0,0.00018,2]
[401146680,1767976241739,-151.0,0.00018,2]
[401146681,1767976241749,-151.0,0.00018,2]
[401146682,1767976241760,-419.877,0.00018195,2]
[401146683,1767976241772,-2312.83697232,0.00018196,2]
[401146684,1767976241783,-151.0,0.00018196,2]
[401146685,1767976241794,-478.75725327,0.00018196,2]
[401146687,1767976241804,-322.6107,0.00018196,2]
[401146689,1767976241815,-30000.0,0.00018196,2]
[401146690,1767976241826,-151.0,0.000182,2]
[401146692,1767976241836,-4666.0,0.0001833,2]
[401146694,1767976241847,-151.0,0.000184,2]
[401146696,1767976241859,-4666.0,0.00018467,2]
[401146698,1767976241870,-500.34997237,0.000185,2]
[401146700,1767976242044,-600.0,0.00018533,2]
[401146701,1767976242069,-4666.0,0.00018604,2]
[401146702,1767976242081,-472.2,0.00018719,2]
[401146703,1767976242091,-600.0,0.00018726,2]
[401146704,1767976242101,-4666.0,0.00018741,2]
[401146705,1767976242110,-2398.4119403,0.00018744,2]
[401146706,1767976242120,-496.47127164,0.00018744,2]
[401146707,1767976242129,-334.5472959,0.00018744,2]
[401146708,1767976242138,-31110.0,0.00018744,2]
[401146709,1767976242148,-1000.0,0.00018757,7]
[401146710,1767976242158,-2848.48523739,0.00018783,7]
[401146711,1767976242167,-777.0,0.000188,2]
[401146712,1767976242178,-5000.0,0.00018863,2]
[401146713,1767976242187,-403.0,0.00018872,2]
[401146714,1767976242197,-4666.0,0.00018878,2]
[401146715,1767976242207,-229.1395677,0.00018896,2]
[401146716,1767976242216,-119267.03231313,0.000189,5]
[401146717,1767976242226,-303.10001603,0.000189,2]
[401146718,1767976242236,-600.0,0.00018919,2]
[401146719,1767976242246,-8456.84699964,0.00018919,2]
[401146720,1767976242291,-696.50093658,0.00018919,2]
[401146721,1767976242301,-1000.0,0.00018953,2]
[401146722,1767976242311,-244.0,0.00018953,2]
[401146723,1767976242320,-151.0,0.00018953,2]
[401146724,1767976242329,-151.0,0.00018953,2]
[401146725,1767976242338,-151.0,0.00018953,2]
[401146726,1767976242348,-160.0,0.00018968,2]
[401146727,1767976242356,-574.63996625,0.00018998,2]
[401146728,1767976242368,-225.36003375,0.00018998,2]
[401146729,1767976242378,-356.52765787,0.00019,20]
[401146730,1767976242387,-9000.0,0.00019,2]
[401146731,1767976242396,-4666.0,0.00019015,2]
[401146732,1767976242406,-407.433787,0.00019015,2]
[401146733,1767976242415,-407.433787,0.00019015,2]
[401146734,1767976242423,-407.433787,0.00019015,2]
[401146735,1767976242433,-407.433787,0.00019015,2]
[401146736,1767976242441,-151.0,0.00019015,2]
[401146737,1767976242453,-155.566511,0.00019015,2]
[401146738,1767976242462,-500.40785574,0.00019021,2]
[401146739,1767976242475,-800.0,0.00019028,2]
[401146740,1767976242484,-303.10001603,0.00019089,2]
[401146741,1767976242495,-151.0,0.000191,2]
[401146742,1767976242504,-600.0,0.00019112,2]
[401146743,1767976242513,-691.03100379,0.00019132,2]
[401146744,1767976242523,-400.0,0.00019146,2]
[401146745,1767976242533,-800.0,0.00019148,2]
[401146746,1767976242544,-4666.0,0.00019152,2]
[401146747,1767976242553,-200.58193509,0.0001917,2]
[401146748,1767976242563,-347.0,0.0001917,2]
[401146749,1767976242572,-347.0,0.0001917,2]
[401146750,1767976242584,-166.0,0.0001917,2]
[401146751,1767976242594,-336.0,0.0001917,2]
[401146752,1767976242604,-336.0,0.0001917,2]
[401146753,1767976242614,-336.0,0.0001917,2]
[401146754,1767976242624,-336.0,0.0001917,2]
[401146755,1767976242634,-336.0,0.0001917,2]
[401146756,1767976242644,-336.0,0.0001917,2]
[401146757,1767976242656,-151.0,0.0001917,2]
[401146758,1767976242667,-336.0,0.0001917,2]
[401146759,1767976242678,-151.0,0.0001917,2]
[401146760,1767976242688,-336.0,0.0001917,2]
[401146761,1767976242699,-347.0,0.0001917,2]
[401146762,1767976242709,-347.0,0.0001917,2]
[401146763,1767976242719,-347.0,0.0001917,2]
[401146764,1767976242729,-347.0,0.0001917,2]
[401146765,1767976242740,-151.0,0.0001917,2]
[401146766,1767976242749,-151.0,0.0001917,2]
[401146767,1767976242759,-151.0,0.0001917,2]
[401146768,1767976242768,-151.0,0.0001917,2]
[401146769,1767976242777,-302.0,0.0001917,2]
[401146770,1767976242787,-347.0,0.0001917,2]
[401146771,1767976242796,-336.0,0.0001917,2]
[401146772,1767976242806,-336.0,0.0001917,2]
[401146773,1767976242816,-336.0,0.0001917,2]
[401146774,1767976242825,-590.25220831,0.00019178,2]
[401146775,1767976242837,-2361.00883326,0.00019178,2]
[401146776,1767976242846,-673.54317155,0.00019178,2]
[401146777,1767976242855,-2694.1726862,0.00019178,2]
[401146779,1767976242865,-5312.26987483,0.00019178,2]
[401146781,1767976242875,-5000.0,0.00019178,2]
[401146783,1767976242886,-5000.0,0.00019178,2]
[401146784,1767976242897,-236.83892514,0.00019178,2]
[401146785,1767976242908,-151.0,0.00019178,2]
[401146786,1767976242918,-221.941164,0.00019178,2]
[401146788,1767976242929,-221.941164,0.00019178,2]
[401146790,1767976242939,-221.941164,0.00019178,2]
[401146791,1767976242949,-221.941164,0.00019178,2]
[401146794,1767976242960,-800.0,0.00019191,2]
[401146795,1767976242970,-161.99,0.000192,2]
[401146797,1767976242979,-164.12,0.000192,2]
[401146799,1767976242989,-1789.16,0.000192,2]
[401146801,1767976242998,-10754.83447727,0.000192,2]
[401146803,1767976243011,-6629.45537126,0.000192,2]
[401146814,1767976243119,-2095.84719324,0.00017061,2]
[401147031,1767976246360,-444.23288936,0.00017061,2]
[401147032,1767976246370,-2540.0800826,0.00017434,2]
[401147033,1767976246380,-2540.0800826,0.00017711,2]
[401147034,1767976246390,-203.16,0.0001778,3]
[401147035,1767976246400,-368.70533875,0.00018077,2]
[401147036,1767976246412,-2171.37474385,0.00018077,2]
[401147037,1767976246422,-2540.0800826,0.00018272,2]
[401147038,1767976246431,-2540.0800826,0.0001843,2]
[401147039,1767976246440,-2540.0800826,0.00018869,2]
[401147040,1767976246450,-2540.080083,0.00019151,2]
[401147041,1767976246462,-3390.04015147,0.000192,2]
[401147042,1767976246472,-167.68,0.000192,2]
[401147043,1767976246480,-308.6000109,0.0001926,2]
[401147044,1767976246490,-200.0,0.00019261,2]
[401147045,1767976246499,-3086.4259561,0.00019262,2]
[401147046,1767976246508,-10769.83516487,0.00019262,2]
[401147047,1767976246520,-2087.86023305,0.00019262,2]
[401147048,1767976246532,-900.0,0.00019262,2]
[401147056,1767976247473,-5151.81426372,0.00019262,2]
[401147080,1767976370524,491.5565372,0.00030136,120]
[401147081,1767976371506,516.13557324,0.00030136,120]
[401147082,1767976379047,596.98336456,0.00030136,120]
[401147083,1767976383081,500.0,0.00030136,120]
[401147084,1767976383154,500.0,0.00030136,120]
[401147085,1767976390460,-200.0,0.00011204,20]
[401147086,1767976392774,157.4,8.863e-05,2]
[401147087,1767976393713,500.0,0.00030136,120]
[401147088,1767976401528,500.0,0.00030136,120]
[401147089,1767976401832,500.0,0.00030136,120]
[401147090,1767976403682,500.0,0.00030136,120]
[401147091,1767976407433,500.0,0.00030136,120]
[401147092,1767976408743,502.53453725,0.00030136,120]
[401147093,1767976409194,588.45226741,0.00030136,120]
[401147094,1767976413246,500.0,0.00030136,120]
[401147095,1767976417387,500.0,0.00030136,120]
[401147096,1767976418156,500.0,0.00030136,120]
[401147097,1767976418405,245.77,0.00030136,120]
[401147098,1767976419223,363.17550109,0.00030136,120]
[401147099,1767976420758,622.70061104,0.00030136,120]
[401147100,1767976421837,500.0,0.00030136,120]
[401147101,1767976422082,500.0,0.00030136,120]
[401147102,1767976422356,500.0,0.00030136,120]
[401147103,1767976422552,239.27893602,0.00030136,120]
[401147104,1767976422618,639.48,0.00030136,120]
[401147105,1767976426891,500.0,0.00030136,120]
[401147106,1767976428885,510.15382894,0.00030136,120]
[401147107,1767976433746,500.0,0.00030136,120]
[401147108,1767976433998,500.0,0.00030136,120]
[401147109,1767976434230,500.0,0.00030136,120]
[401147110,1767976434470,500.0,0.00030136,120]
[401147111,1767976434729,500.0,0.00030136,120]
[401147112,1767976434964,231.12,0.00030136,120]
[401147113,1767976435359,500.0,0.00030136,120]
[401147114,1767976435615,500.0,0.00030136,120]
[401147115,1767976435675,510.8472333,0.00030136,120]
[401147116,1767976440550,500.0,0.00030136,120]
[401147117,1767976440630,611.28818199,0.00030136,120]
[401147118,1767976441286,524.71,0.00030136,120]
[401147119,1767976444058,500.0,0.00030136,120]
[401147120,1767976444317,500.0,0.00030136,120]
[401147121,1767976444586,500.0,0.00030136,120]
[401147122,1767976444839,500.0,0.00030136,120]
[401147123,1767976445083,500.0,0.00030136,120]
[401147124,1767976445316,500.0,0.00030136,120]
[401147125,1767976445556,196.09,0.00030136,120]
[401147126,1767976447841,500.0,0.00030136,120]
[401147127,1767976448616,500.0,0.00030136,120]
[401147128,1767976448847,500.0,0.00030136,120]
[401147129,1767976449639,500.0,0.00030136,120]
[401147130,1767976449874,225.8348066,0.00030136,120]
[401147131,1767976450285,500.0,0.00030136,120]
[401147132,1767976450858,500.0,0.00030136,120]
[401147133,1767976452263,511.66351579,0.00030136,120]
[401147134,1767976453626,500.0,0.00030136,120]
[401147135,1767976453850,466.76878616,0.00030136,120]
[401147136,1767976453998,500.0,0.00030136,120]
[401147137,1767976455896,500.0,0.00030136,120]
[401147138,1767976459062,500.0,0.00030136,120]
[401147139,1767976459316,500.0,0.00030136,120]
[401147140,1767976461181,500.0,0.00030136,120]
[401147141,1767976461243,500.0,0.00030136,120]
[401147142,1767976461557,543.28293337,0.00030136,120]
[401147143,1767976463346,500.0,0.00030136,120]
[401147144,1767976463613,500.0,0.00030136,120]
[401147145,1767976465456,580.02613712,0.00030136,120]
[401147146,1767976466284,500.0,0.00030136,120]
[401147147,1767976466543,500.0,0.00030136,120]
[401147148,1767976466963,500.0,0.00030136,120]
[401147149,1767976467211,500.0,0.00030136,120]
[401147150,1767976467443,500.0,0.00030136,120]
[401147151,1767976467710,500.0,0.00030136,120]
[401147152,1767976467901,500.0,0.00030136,120]
[401147153,1767976468332,616.06,0.00030136,120]
[401147154,1767976470502,500.0,0.00030136,120]
[401147155,1767976470744,500.0,0.00030136,120]
[401147156,1767976472949,444.92832062,0.00030136,120]
[401147157,1767976473020,631.35384667,0.00030136,120]
[401147158,1767976473715,500.0,0.00030136,120]
[401147159,1767976473777,500.0,0.00030136,120]
[401147160,1767976473946,523.08536034,0.00030136,120]
[401147161,1767976474006,500.0,0.00030136,120]
[401147162,1767976477902,500.0,0.00030136,120]
[401147163,1767976478142,525.96134524,0.00030136,120]
[401147164,1767976484382,500.0,0.00030136,120]
[401147165,1767976484628,500.0,0.00030136,120]
[401147166,1767976490892,500.0,0.00030136,120]
[401147167,1767976491134,500.0,0.00030136,120]
[401147168,1767976491785,307.69818242,0.00030136,120]
[401147169,1767976492520,339.81281698,0.00030136,120]
[401147170,1767976492892,500.0,0.00030136,120]
[401147171,1767976493159,175.05106907,0.00030136,120]
[401147172,1767976499350,500.0,0.00030136,120]
[401147173,1767976499596,500.0,0.00030136,120]
[401147174,1767976499954,564.56926368,0.00030136,120]
[401147175,1767976503642,500.0,0.00030136,120]
[401147176,1767976503740,500.0,0.00030136,120]
[401147177,1767976503985,500.0,0.00030136,120]
[401147178,1767976506591,441.69440154,0.00030136,120]
[401147179,1767976508859,500.0,0.00030136,120]
[401147180,1767976509093,464.50837596,0.00030136,120]
[401147181,1767976510953,500.0,0.00030136,120]
[401147182,1767976511195,150.96099625,0.00030136,120]
[401147183,1767976511309,500.0,0.00030136,120]
[401147184,1767976511377,500.0,0.00030136,120]
[401147185,1767976511555,525.70044066,0.00030136,120]
[401147186,1767976511639,500.0,0.00030136,120]
[401147187,1767976511835,500.0,0.00030136,120]
[401147188,1767976512047,500.0,0.00030136,120]
[401147189,1767976512115,320.99194648,0.00030136,120]
[401147190,1767976512425,522.41890036,0.00030136,120]
[401147191,1767976515073,500.0,0.00030136,120]
[401147192,1767976515313,512.68134184,0.00030136,120]
[401147193,1767976515606,500.0,0.00030136,120]
[401147194,1767976515886,482.37880775,0.00030136,120]
[401147195,1767976518018,500.0,0.00030136,120]
[401147196,1767976518259,627.95570094,0.00030136,120]
[401147197,1767976520715,246.60117318,0.00030136,120]
[401147198,1767976521258,260.83499828,0.00030136,120]
[401147199,1767976525843,500.0,0.00030136,120]
[401147200,1767976525904,500.0,0.00030136,120]
[401147201,1767976526090,512.73903706,0.00030136,120]
[401147202,1767976526154,500.0,0.00030136,120]
[401147203,1767976527146,500.0,0.00030136,120]
[401147204,1767976527427,595.73771837,0.00030136,120]
[401147205,1767976531351,500.0,0.00030136,120]
[401147206,1767976531457,500.0,0.00030136,120]
[401147207,1767976531604,500.0,0.00030136,120]
[401147208,1767976531700,509.34236429,0.00030136,120]
[401147209,1767976531767,500.0,0.00030136,120]
[401147210,1767976531833,500.0,0.00030136,120]
[401147211,1767976531967,546.06553792,0.00030136,120]
[401147212,1767976532099,500.0,0.00030136,120]
[401147213,1767976532364,500.0,0.00030136,120]
[401147214,1767976532606,500.0,0.00030136,120]
[401147215,1767976532844,500.0,0.00030136,120]
[401147216,1767976532905,422.32142514,0.00030136,120]
[401147217,1767976533196,500.0,0.00030136,120]
[401147218,1767976533471,414.26,0.00030136,120]
[401147219,1767976537196,500.0,0.00030136,120]
[401147220,1767976537443,616.19086894,0.00030136,120]
[401147221,1767976539433,2146.93,0.00030136,120]